bitfinex-derivatives/quotes_ETHF0:USTF0_20250918
["timestamp","ask_amount","ask_price","bid_price","bid_amount"]
[1758175942981,0.5349,4577.0,4576.9,0.499]
[1758175943187,0.4148,4577.0,4576.9,0.6949]
[1758175943585,0.73,4577.0,4576.9,0.6949]
[1758175945294,0.8501,4577.0,4576.9,0.9279]
[1758175945488,0.8501,4577.0,4576.9,0.233]
[1758175945693,0.73,4576.9,4576.8,0.233]
[1758175945893,0.73,4576.1,4576.0,0.015]
[1758175946189,0.4148,4575.9,4575.8,0.3066]
[1758175946396,0.73,4575.9,4575.8,0.499]
[1758175947192,0.73,4575.9,4575.8,0.3066]
[1758175947790,0.3152,4575.8,4575.6,0.3066]
[1758175947996,3.75573339,4575.7,4575.6,0.3066]
[1758175950991,3.75573339,4575.7,4575.2,0.0218]
[1758175951197,3.75573339,4575.3,4575.2,0.0218]
[1758175951389,3.98873339,4575.3,4575.2,0.0218]
[1758175952190,8.47223759,4575.3,4575.2,0.0218]
[1758175952397,8.2073034,4575.3,4575.2,0.0218]
[1758175952695,8.2073034,4575.3,4574.5,0.3066]
[1758175952890,3.44053339,4574.6,4574.2,0.3066]
[1758175953192,0.3152,4574.2,4574.1,0.3066]
[1758175953396,0.73,4574.2,4574.1,0.3066]
[1758175953591,0.73,4574.2,4573.6,0.3066]
[1758175953788,0.73,4573.2,4573.1,0.3066]
[1758175954299,3.75573339,4573.2,4573.1,0.3066]
[1758175955397,3.75573339,4573.2,4573.1,0.499]
[1758175955597,3.02573339,4573.4,4573.2,0.3066]
[1758175955800,3.02573339,4573.4,4573.3,0.4179]
[1758175955801,3.22303339,4573.4,4573.3,0.4179]
[1758175955993,3.42973339,4573.4,4573.3,0.7065]
[1758175956591,3.74443339,4573.4,4573.3,0.4964]
[1758175956997,3.74443339,4573.4,4572.7,0.233]
[1758175956998,0.404,4572.8,4572.7,0.7065]
[1758175957194,0.637,4572.8,4571.4,3.2078]
[1758175957394,0.637,4572.8,4572.7,0.4179]
[1758175957395,3.3878,4572.8,4572.7,0.4179]
[1758175957695,3.20573339,4573.2,4573.0,0.1232]
[1758175957891,3.02573339,4573.1,4573.0,0.5411]
[1758175958494,3.02573339,4573.1,4573.0,0.331]
[1758175959198,3.02573339,4573.1,4573.0,0.8297]
[1758175959395,3.02573339,4573.1,4573.0,0.6196]
[1758175960299,3.2078,4573.4,4573.3,0.7065]
[1758175960499,3.4418,4573.4,4573.3,0.7065]
[1758175960894,3.2078,4573.4,4573.3,0.7065]
[1758175962698,3.4418,4573.4,4573.3,0.2886]
[1758175965197,7.66046,4573.4,4573.0,0.1232]
[1758175965399,3.02573339,4573.1,4573.0,0.4118]
[1758175965699,3.25973339,4573.1,4573.0,0.4118]
[1758175966299,3.53869183,4573.1,4573.0,0.4118]
[1758175966889,3.2078,4573.4,4573.1,0.2886]
[1758175967091,3.02573339,4573.2,4573.1,0.4964]
[1758175967291,3.02573339,4573.2,4573.0,0.1232]
[1758175967292,3.2078,4573.4,4573.3,0.2078]
[1758175967491,6.74657368,4573.4,4573.3,0.4964]
[1758175968187,6.74657368,4573.4,4573.3,0.7065]
[1758175968398,6.23353339,4573.4,4573.3,0.7065]
[1758175968600,6.74662367,4573.4,4573.3,0.2886]
[1758175968995,6.46753339,4573.4,4573.3,0.2886]
[1758175969195,6.74663645,4573.4,4573.3,0.2886]
[1758175969403,6.74670322,4573.4,4573.3,0.2886]
[1758175970900,10.74670322,4573.4,4573.3,0.2886]
[1758175971105,11.287343,4573.4,4572.5,0.1232]
[1758175971303,6.23353339,4572.6,4572.5,0.1232]
[1758175971602,6.74670322,4572.6,4572.5,0.1232]
[1758175971804,7.1245025,4572.6,4572.5,0.1232]
[1758175972396,3.72096983,4572.6,4572.5,0.5411]
[1758175972602,3.71996983,4572.6,4572.5,0.5411]
[1758175973097,7.1235025,4572.6,4572.5,0.8297]
[1758175973298,7.64384952,4572.6,4572.5,0.4118]
[1758175976105,7.41084952,4572.6,4572.5,0.4118]
[1758175976305,7.64384952,4572.6,4572.5,0.4118]
[1758175976504,4.00731685,4572.6,4572.5,0.8297]
[1758175976805,4.24031685,4572.6,4572.5,0.8297]
[1758175977000,4.00731685,4572.6,4572.5,0.8297]
[1758175977301,0.233,4572.6,4572.5,0.8297]
[1758175978200,3.2078,4573.1,4572.5,0.8297]
[1758175978201,3.2078,4573.1,4573.0,0.8297]
[1758175978403,4.23317246,4573.1,4573.0,0.8297]
[1758175979507,4.00017246,4573.1,4573.0,0.8297]
[1758175979708,4.23317246,4573.1,4573.0,0.8297]
[1758175979908,4.00017246,4573.1,4573.0,0.8297]
[1758175980103,1.02537246,4573.1,4573.0,0.8297]
[1758175980407,4.19590513,4573.1,4573.0,0.8297]
[1758175980604,4.42890513,4573.1,4573.0,0.8297]
[1758175980904,4.19590513,4573.1,4573.0,0.8297]
[1758175981206,4.42890513,4573.1,4573.0,0.8297]
[1758175981408,1.02537246,4573.1,4573.0,0.6196]
[1758175981612,1.02537246,4573.1,4573.0,0.4118]
[1758175981796,4.42890513,4573.1,4573.0,0.4118]
[1758175982002,4.42890513,4573.1,4573.0,0.1232]
[1758175982605,9.97897218,4573.1,4572.6,0.2945]
[1758175982812,6.61133267,4572.7,4572.6,0.2945]
[1758175983007,7.63670513,4572.7,4572.6,0.2945]
[1758175983309,11.85539513,4572.7,4572.1,0.2945]
[1758175983502,10.01486534,4572.2,4571.1,0.2945]
[1758175983699,3.2078,4571.2,4571.0,0.1244]
[1758175984012,2.57834682,4571.1,4570.7,0.2945]
[1758175984217,3.40353267,4570.8,4569.0,0.1244]
[1758175984505,3.2078,4569.6,4569.0,0.4189]
[1758175984702,3.2078,4569.8,4569.5,0.1244]
[1758175985005,0.77154708,4569.7,4569.6,0.2945]
[1758175985309,0.54156072,4569.7,4569.6,0.2945]
[1758175985507,0.54156072,4569.7,4569.6,4.2945]
[1758175986308,0.54156072,4569.7,4569.6,0.2945]
[1758175986907,0.78056072,4569.7,4569.6,0.2945]
[1758175987405,0.54156072,4569.7,4569.6,0.2945]
[1758175987605,0.78056072,4569.7,4569.6,0.2945]
[1758175987801,0.54156072,4569.7,4569.6,4.2945]
[1758175988006,3.40353267,4570.3,4569.6,4.2945]
[1758175988205,3.40353267,4570.3,4570.1,0.2992]
[1758175988405,3.64153267,4570.3,4570.1,0.2992]
[1758175989116,3.2078,4570.4,4570.1,0.2992]
[1758175989413,3.4458,4570.4,4570.1,0.2992]
[1758175989613,3.2078,4570.4,4570.1,0.2992]
[1758175990004,3.2078,4571.0,4570.5,0.1184]
[1758175990210,0.238,4570.9,4570.6,0.2992]
[1758175990409,3.2078,4571.0,4570.6,0.2992]
[1758175990707,3.2078,4571.0,4570.8,0.2992]
[1758175990907,3.2078,4571.5,4571.1,0.2992]
[1758175991104,6.61133267,4571.5,4571.1,0.2992]
[1758175991614,6.61133267,4571.5,4571.0,0.1184]
[1758175991911,0.125,4571.0,4570.6,0.2992]
[1758175992104,3.40353267,4570.6,4570.0,3.3262]
[1758175992310,3.40353267,4570.6,4570.5,0.4176]
[1758175992613,3.4458,4570.7,4570.6,0.2992]
[1758175993007,7.67287262,4570.7,4570.0,0.1184]
[1758175993208,6.73633267,4570.1,4569.5,0.1244]
[1758175993405,0.238,4570.0,4569.3,3.2078]
[1758175993703,0.238,4570.0,4568.0,0.1184]
[1758175993704,0.125,4569.4,4568.0,0.1184]
[1758175993902,6.80706534,4569.6,4568.0,0.1184]
[1758175993903,6.73633267,4568.9,4568.0,0.1184]
[1758175994108,7.20331039,4568.9,4568.0,0.1184]
[1758175994508,3.40353267,4568.4,4568.3,0.2992]
[1758175994709,3.64353267,4568.4,4568.3,0.2992]
[1758175994911,3.64353267,4568.4,4567.9,0.2992]
[1758175994912,0.125,4568.3,4567.9,0.2992]
[1758175995309,3.2078,4568.4,4568.3,0.2992]
[1758175995514,3.4478,4568.4,4568.3,0.2992]
[1758175995910,0.24,4568.5,4568.3,0.2992]
[1758175996110,0.24,4568.6,4568.5,0.4176]
[1758175996416,3.40353267,4568.9,4568.6,0.2992]
[1758175996711,3.4468,4569.0,4568.6,0.2992]
[1758175997211,3.4468,4569.0,4568.5,0.1184]
[1758175997710,40.8,4569.9,4569.0,0.4176]
[1758175997711,3.2078,4569.9,4569.0,0.4176]
[1758175997912,0.239,4569.8,4569.6,0.2992]
[1758175998115,0.239,4569.8,4569.5,0.1184]
[1758175998413,0.239,4570.0,4569.7,0.2992]
[1758175998612,3.40353267,4570.1,4570.0,0.1184]
[1758175998818,6.61133267,4570.1,4570.0,0.4176]
[1758175999407,3.2078,4570.1,4570.0,0.4176]
[1758176000012,0.239,4570.1,4570.0,0.4176]
[1758176001018,3.4468,4570.1,4570.0,0.4176]
[1758176001318,6.85033267,4570.1,4570.0,0.2992]
[1758176001707,0.125,4569.4,4567.1,0.2992]
[1758176001914,3.40353267,4567.2,4567.1,0.2992]
[1758176002213,3.40353267,4567.2,4566.6,3.2078]
[1758176002214,3.64353267,4567.2,4566.6,0.2992]
[1758176002423,3.40353267,4566.7,4566.5,0.4176]
[1758176002718,3.40353267,4566.7,4566.6,0.2992]
[1758176003018,3.68449912,4566.7,4566.6,3.507]
[1758176003220,3.68449912,4566.7,4566.6,0.2992]
[1758176003818,7.13229912,4566.7,4566.1,0.2992]
[1758176004022,3.40353267,4566.2,4566.1,0.2992]
[1758176004220,3.68449912,4566.2,4566.1,0.2992]
[1758176004416,3.92449912,4566.2,4566.1,0.2992]
[1758176005218,3.68449912,4566.2,4566.1,0.2992]
[1758176005416,3.68449912,4566.2,4566.1,4.2992]
[1758176005920,0.28096645,4566.2,4566.1,4.69324]
[1758176006220,3.56653267,4567.5,4566.2,0.2992]
[1758176006414,3.56653267,4567.5,4567.0,0.1184]
[1758176006621,0.24,4567.4,4567.0,0.1184]
[1758176007122,3.40353267,4567.5,4567.0,0.1184]
[1758176007323,0.24,4567.4,4567.0,0.1184]
[1758176007617,3.64353267,4567.5,4567.1,0.2992]
[1758176007824,3.2078,4567.7,4567.1,0.2992]
[1758176008118,3.2078,4567.7,4567.5,0.1184]
[1758176008323,3.2078,4567.7,4567.6,0.2992]
[1758176008522,3.64353267,4567.7,4567.1,0.2992]
[1758176008921,0.2906,4567.9,4567.1,0.2992]
[1758176009119,0.24,4567.8,4567.1,0.2992]
[1758176009927,0.24,4567.8,4567.4,0.2992]
[1758176010225,3.64353267,4567.8,4567.4,0.2992]
[1758176010522,0.2906,4567.7,4567.3,3.2078]
[1758176010722,0.2906,4567.7,4567.4,0.2992]
[1758176011023,0.5296,4567.7,4567.4,0.2992]
[1758176011226,0.5296,4567.7,4567.0,0.1184]
[1758176011421,3.40353267,4567.1,4566.2,3.2078]
[1758176011627,3.52573267,4567.5,4566.9,3.2078]
[1758176011922,0.2906,4567.4,4566.9,3.2078]
[1758176012321,0.2906,4567.5,4567.0,0.2992]
[1758176012521,3.64453267,4567.6,4566.9,3.2078]
[1758176012721,3.64453267,4567.6,4567.0,0.2992]
[1758176012918,0.241,4567.5,4566.9,3.2078]
[1758176013126,3.2078,4567.7,4567.1,0.2992]
[1758176013422,3.40353267,4567.6,4567.1,0.2992]
[1758176013822,3.40353267,4567.6,4567.0,0.1184]
[1758176014622,3.2078,4567.7,4567.1,0.2992]
[1758176016820,0.3191,4567.6,4567.3,0.2938]
[1758176017222,3.40353267,4568.0,4567.5,0.2938]
[1758176017422,0.3191,4567.9,4567.5,0.2938]
[1758176017617,0.3191,4568.4,4567.6,0.2938]
[1758176017822,0.3191,4568.4,4568.0,0.2938]
[1758176018125,0.27249216,4568.3,4568.1,0.2938]
[1758176018322,0.27249216,4568.2,4568.1,0.2938]
[1758176018625,0.27249216,4568.2,4568.0,0.1262]
[1758176018832,0.27249216,4568.1,4568.0,0.42]
[1758176019128,0.27249216,4568.7,4568.0,0.42]
[1758176019328,0.27249216,4568.6,4568.1,0.2938]
[1758176019528,0.27249216,4568.5,4568.2,0.24]
[1758176019724,0.27249216,4568.4,4568.3,0.2938]
[1758176020122,0.27249216,4568.8,4568.3,4.2938]
[1758176020326,0.80581535,4568.7,4568.6,0.2938]
[1758176020528,0.27249216,4568.7,4568.6,0.2938]
[1758176021531,0.3191,4569.2,4568.6,0.2938]
[1758176021734,0.25359707,4569.1,4568.6,0.2938]
[1758176021932,0.57269707,4569.0,4568.5,0.1262]
[1758176022127,3.40353267,4569.3,4568.6,0.2938]
[1758176022332,0.78772794,4569.2,4568.6,0.2938]
[1758176022535,0.25359725,4569.1,4568.5,0.1262]
[1758176022831,3.40353267,4569.3,4568.7,0.2938]
[1758176023035,0.25366933,4569.2,4568.6,3.2078]
[1758176023228,3.40353267,4569.3,4568.7,0.2938]
[1758176023432,0.57284091,4569.2,4568.7,0.2938]
[1758176023737,0.57284333,4569.1,4568.7,0.2938]
[1758176023937,0.3191,4569.1,4568.6,3.2078]
[1758176024134,0.3191,4569.1,4568.7,0.24]
[1758176024629,3.72263267,4569.5,4568.8,0.2938]
[1758176024940,0.25379037,4569.4,4568.8,0.2938]
[1758176025240,0.25947941,4569.3,4568.8,0.2938]
[1758176025535,0.25947941,4569.2,4569.1,0.2938]
[1758176026034,0.45267941,4569.2,4569.1,0.7091]
[1758176026439,0.65057941,4569.2,4569.1,0.7091]
[1758176026647,0.3191,4568.9,4568.1,3.2078]
[1758176026845,0.3191,4568.9,4566.0,0.1262]
[1758176026846,0.0412,4567.0,4566.4,3.2078]
[1758176027043,0.0412,4567.0,4565.8,0.00657868]
[1758176027044,0.25923222,4566.9,4566.1,0.2938]
[1758176027248,0.25923222,4566.8,4566.1,0.2938]
[1758176027448,0.3191,4567.0,4566.1,0.2938]
[1758176027650,0.3191,4567.6,4566.8,3.40353267]
[1758176027944,0.3191,4568.2,4567.5,0.42]
[1758176028143,0.25924125,4568.1,4567.5,0.66]
[1758176028352,3.2078,4568.3,4567.5,0.66]
[1758176028353,0.25924125,4568.0,4567.5,0.66]
[1758176028543,0.3191,4567.8,4567.5,0.66]
[1758176028747,0.3191,4567.8,4567.7,0.2938]
[1758176028942,3.2078,4568.3,4567.7,0.2938]
[1758176029147,0.25931395,4568.2,4567.7,0.2938]
[1758176029340,3.2078,4568.3,4568.0,0.1262]
[1758176029544,3.2078,4568.3,4568.1,0.24]
[1758176030052,3.2078,4568.3,4568.2,0.2938]
[1758176030251,3.46729668,4568.3,4568.2,0.2938]
[1758176030549,0.3191,4568.8,4568.2,0.2938]
[1758176030744,0.25951498,4568.7,4568.2,0.2938]
[1758176030945,0.25951498,4568.6,4568.3,0.239]
[1758176031146,0.3191,4568.8,4568.4,0.2938]
[1758176031347,0.25951253,4568.7,4568.1,0.2938]
[1758176031548,0.25951253,4568.6,4568.2,0.239]
[1758176031747,0.3191,4568.8,4568.2,0.239]
[1758176032052,3.2078,4569.1,4568.5,0.1262]
[1758176032244,0.25964263,4569.0,4568.0,0.1262]
[1758176032443,0.57874263,4568.9,4568.1,0.2938]
[1758176032646,0.25964263,4568.8,4568.1,0.2938]
[1758176032851,0.3191,4568.6,4568.2,0.239]
[1758176033048,0.3191,4568.9,4568.2,0.5328]
[1758176033243,0.25964558,4568.8,4568.2,0.5328]
[1758176033458,0.25964558,4568.7,4568.2,0.239]
[1758176033752,0.25964558,4568.6,4568.3,0.2938]
[1758176033951,3.35585357,4568.8,4568.2,0.2938]
[1758176034143,0.25967562,4568.7,4568.3,0.239]
[1758176034345,0.3191,4567.9,4567.1,0.2938]
[1758176034556,0.3191,4567.9,4567.2,0.24]
[1758176034853,3.03675357,4568.2,4567.3,0.2938]
[1758176035045,0.259749,4568.1,4567.3,0.2938]
[1758176035243,0.3191,4568.3,4567.3,0.2938]
[1758176035244,0.259749,4568.0,4567.3,0.2938]
[1758176035448,3.03675357,4568.2,4567.3,0.2938]
[1758176035652,0.25984883,4568.1,4567.3,0.2938]
[1758176035851,0.25984883,4568.0,4567.3,0.2938]
[1758176036051,3.03675357,4568.2,4567.4,3.2078]
[1758176036254,0.3191,4568.0,4567.4,3.2078]
[1758176036650,3.03675357,4568.2,4567.5,0.1262]
[1758176036948,0.25987021,4568.1,4567.7,0.2938]
[1758176037256,0.3191,4567.4,4565.3,0.43808251]
[1758176037560,6.56365357,4565.9,4565.3,0.43808251]
[1758176037854,7.35517442,4565.9,4565.3,0.43808251]
[1758176038250,3.2078,4565.9,4565.8,0.30037868]
[1758176038450,3.2078,4565.9,4565.3,0.43808251]
[1758176038451,8.0063753,4565.9,4565.3,0.43808251]
[1758176038756,6.56365357,4565.4,4565.3,0.43808251]
[1758176039255,10.56365357,4565.4,4564.5,3.2078]
[1758176039453,3.03675357,4564.6,4564.1,0.2938]
[1758176039752,3.03675357,4564.2,4563.3,0.2938]
[1758176039952,3.03675357,4563.4,4563.2,0.02191469]
[1758176040151,3.2078,4563.6,4563.3,0.2934]
[1758176040351,3.03675357,4563.4,4563.3,0.2934]
[1758176040553,3.2078,4564.1,4564.0,0.1203]
[1758176040854,3.03675357,4564.2,4564.1,0.2934]
[1758176041258,10.24455357,4564.2,4563.5,0.4137]
[1758176041452,3.03675357,4563.6,4563.5,0.4137]
[1758176041957,3.03675357,4563.7,4563.6,0.2934]
[1758176042252,3.2078,4564.2,4564.0,0.1203]
[1758176042456,3.2078,4564.2,4564.1,0.5354]
[1758176042956,3.03675357,4564.6,4564.5,0.1203]
[1758176043152,3.2078,4564.7,4563.8,3.2078]
[1758176043356,3.03675357,4564.6,4564.5,0.4137]
[1758176043549,3.2078,4564.7,4564.6,0.2934]
[1758176044159,3.03675357,4565.1,4565.0,0.1203]
[1758176044356,3.2078,4565.3,4565.0,0.1203]
[1758176044556,3.2078,4565.3,4565.1,0.2934]
[1758176044856,3.2078,4566.4,4565.3,0.2934]
[1758176045251,3.2078,4566.4,4565.0,0.1203]
[1758176045252,3.2078,4565.8,4565.1,0.2934]
[1758176045456,3.2078,4565.8,4565.2,0.5354]
[1758176045457,3.03675357,4565.6,4565.2,0.5354]
[1758176045758,3.2078,4565.8,4565.5,0.1263]
[1758176045960,3.2078,4566.3,4565.6,0.3206]
[1758176046254,3.2078,4566.3,4566.1,0.3206]
[1758176047151,3.2078,4566.3,4565.6,0.3206]
[1758176047360,3.2078,4566.3,4565.7,0.242]
[1758176049160,3.2078,4565.8,4565.2,0.231]
[1758176049659,6.24455357,4565.3,4564.5,0.4409]
[1758176050057,6.24455357,4565.3,4564.6,0.242]
[1758176051250,3.2078,4565.3,4565.0,0.1263]
[1758176051658,0.242,4565.6,4565.0,0.1263]
[1758176052050,3.4498,4565.8,4565.1,0.3206]
[1758176052255,3.03675357,4565.5,4564.8,3.2078]
[1758176052460,3.03675357,4566.1,4563.9,0.3206]
[1758176052461,6.24455357,4565.1,4563.9,0.3206]
[1758176052650,3.2078,4565.1,4563.9,0.3206]
[1758176052959,3.03675357,4564.7,4563.8,3.2078]
[1758176053161,3.2078,4565.1,4564.1,0.3206]
[1758176053361,3.03675357,4564.7,4564.1,0.3206]
[1758176053564,3.03675357,4564.2,4563.6,0.3206]
[1758176054257,3.03675357,4564.2,4564.0,0.1263]
[1758176054450,3.2078,4564.6,4564.0,0.1263]
[1758176054451,6.24455357,4564.6,4564.1,0.3206]
[1758176054656,3.2078,4564.6,4564.5,0.4469]
[1758176055362,3.2078,4564.6,4564.0,0.1263]
[1758176055563,3.03675357,4564.1,4563.8,0.3206]
[1758176055961,3.2078,4564.6,4563.6,0.3206]
[1758176056464,3.2078,4564.6,4564.1,0.3206]
[1758176056860,3.2078,4564.6,4564.1,0.242]
[1758176057059,3.2078,4564.6,4564.2,0.3206]
[1758176057365,3.2078,4564.6,4564.5,0.4469]
[1758176058865,3.2078,4564.6,4564.0,0.1263]
[1758176059071,6.24455357,4564.1,4563.8,0.0095]
[1758176059772,3.2078,4564.1,4563.6,0.3206]
[1758176059969,3.2078,4564.1,4564.0,0.4469]
[1758176060861,3.2078,4564.1,4563.0,0.1263]
[1758176061061,3.2078,4564.1,4562.0,0.1263]
[1758176061062,3.03675357,4563.3,4562.5,0.4469]
[1758176061969,3.03675357,4563.3,4562.5,0.6879]
[1758176062570,3.03675357,4563.3,4562.5,0.6947]
[1758176062770,3.2078,4563.4,4562.5,0.6947]
[1758176063074,3.03675357,4563.3,4562.5,0.4537]
[1758176063570,3.03675357,4562.9,4562.5,0.4537]
[1758176063774,0.241,4563.2,4562.5,0.4537]
[1758176064073,3.03675357,4563.1,4562.5,0.1331]
[1758176064272,0.241,4563.2,4562.5,0.1331]
[1758176064471,3.2078,4563.4,4562.6,0.3206]
[1758176064675,3.03675357,4563.3,4562.6,0.3206]
[1758176064870,3.2078,4563.4,4562.6,0.3206]
[1758176065073,3.03675357,4563.2,4562.6,0.3206]
[1758176066670,3.03675357,4562.8,4562.6,0.3206]
[1758176067177,3.2078,4562.9,4562.5,0.1331]
[1758176067372,3.2078,4562.9,4562.6,0.3206]
[1758176067766,3.2078,4563.4,4562.6,0.3206]
[1758176067972,3.4478,4563.4,4562.6,0.3206]
[1758176068169,0.24,4563.5,4562.6,0.3206]
[1758176068471,0.24,4563.6,4562.6,0.3206]
[1758176069072,3.03675357,4563.3,4562.6,0.3206]
[1758176069472,3.03675357,4563.3,4563.1,0.3206]
[1758176069874,3.03675357,4563.5,4563.1,0.3206]
[1758176070067,3.03675357,4563.5,4563.0,0.1263]
[1758176070669,3.03675357,4563.5,4563.1,0.3206]
[1758176070871,3.03675357,4563.5,4563.0,0.1263]
[1758176071069,3.2078,4563.9,4563.1,0.3206]
[1758176071476,3.4478,4563.9,4563.1,0.3206]
[1758176071664,3.2078,4563.9,4563.1,0.3206]
[1758176071870,6.24455357,4563.9,4563.1,0.3206]
[1758176072070,6.48455357,4563.9,4563.1,0.3206]
[1758176072479,6.24455357,4563.9,4563.1,0.3206]
[1758176072873,3.2078,4563.3,4563.1,0.3206]
[1758176073074,3.2078,4563.3,4563.0,0.1263]
[1758176073672,3.2078,4563.3,4563.1,0.3206]
[1758176074073,3.2078,4563.3,4563.0,0.1263]
[1758176074381,3.2078,4563.3,4563.1,0.3206]
[1758176074672,3.2078,4563.3,4563.0,0.1263]
[1758176075074,3.2078,4563.3,4563.1,0.3206]
[1758176075473,3.2078,4563.3,4563.0,0.1263]
[1758176075668,3.2078,4563.3,4563.1,0.3206]
[1758176075975,3.2078,4563.3,4563.1,0.2959]
[1758176076278,3.2078,4563.3,4563.0,0.1263]
[1758176076480,3.2078,4563.3,4563.1,0.2959]
[1758176076675,3.2078,4563.3,4563.0,0.1263]
[1758176076875,3.2078,4563.3,4563.1,0.2959]
[1758176077068,3.2078,4563.3,4563.0,0.1263]
[1758176077276,3.2078,4563.3,4563.1,0.2959]
[1758176079787,6.24455357,4563.3,4563.1,0.2959]
[1758176080582,3.2078,4563.3,4563.1,0.2959]
[1758176080983,3.2078,4563.3,4563.0,0.1263]
[1758176081181,3.2078,4563.3,4563.1,0.2959]
[1758176081484,3.2078,4563.3,4563.0,0.1263]
[1758176081990,3.2078,4563.3,4563.1,0.2959]
[1758176082685,3.2078,4563.3,4563.0,0.1263]
[1758176082899,3.2078,4563.3,4563.0,0.4222]
[1758176083084,3.2078,4563.3,4563.0,0.1263]
[1758176083589,3.2078,4563.3,4563.2,0.5046]
[1758176083787,3.2078,4563.3,4563.2,0.6978]
[1758176086582,3.2078,4563.9,4563.2,0.6978]
[1758176086782,3.2078,4563.9,4563.5,0.3318]
[1758176086988,3.2078,4563.9,4563.6,0.2959]
[1758176087287,3.2078,4563.9,4563.7,0.2087]
[1758176087487,3.2078,4563.9,4563.5,0.1231]
[1758176087488,3.2078,4563.9,4563.8,0.2959]
[1758176088086,3.2078,4564.4,4563.6,0.5046]
[1758176088292,0.53155931,4564.3,4563.7,0.5046]
[1758176088489,0.53155931,4564.2,4563.5,0.1231]
[1758176088785,3.2078,4564.9,4564.1,0.2959]
[1758176088985,0.53162972,4564.8,4564.1,0.2959]
[1758176089289,0.53162972,4564.7,4564.5,0.1231]
[1758176089491,3.4448,4564.9,4564.5,0.1231]
[1758176089689,0.53144269,4564.8,4564.6,0.2959]
[1758176089891,0.53144269,4564.7,4564.6,0.2959]
[1758176090088,0.53144269,4564.8,4564.6,0.2959]
[1758176090287,3.03675357,4564.7,4564.5,0.1231]
[1758176091094,3.2078,4564.9,4564.5,0.1231]
[1758176091393,3.4448,4564.9,4564.5,0.419]
[1758176091694,0.53110443,4564.8,4564.5,0.419]
[1758176091885,0.53110443,4564.7,4564.5,0.419]
[1758176092086,3.4448,4564.9,4564.5,0.419]
[1758176092386,0.53100943,4564.8,4564.5,0.419]
[1758176092693,3.4448,4564.9,4564.5,0.419]
[1758176092889,0.5309957,4564.8,4564.6,0.2959]
[1758176093090,6.24455357,4564.9,4564.5,0.1231]
[1758176093691,6.24455357,4564.9,4564.5,0.419]
[1758176093990,6.24455357,4564.9,4564.6,0.2959]
[1758176094490,3.2078,4564.9,4564.5,0.1231]
[1758176094787,3.4448,4564.9,4564.7,0.2959]
[1758176094989,3.4448,4564.9,4564.6,0.2959]
[1758176095590,3.2078,4564.9,4564.6,0.2959]
[1758176095793,3.2078,4564.9,4564.5,0.3318]
[1758176095989,3.2078,4564.9,4564.6,0.2959]
[1758176096189,3.2078,4564.9,4564.7,0.2959]
[1758176096494,3.2078,4564.9,4564.8,0.5046]
[1758176097980,3.2078,4564.9,4564.8,0.6978]
[1758176098590,3.2078,4565.4,4565.0,0.1231]
[1758176098891,3.2078,4565.4,4565.3,0.6978]
[1758176101192,3.2078,4565.9,4565.5,0.1258]
[1758176101399,3.2078,4565.9,4565.8,0.6907]
[1758176101596,3.2078,4565.9,4565.8,0.2956]
[1758176102689,7.2078,4565.9,4565.0,0.1231]
[1758176102894,3.2078,4565.2,4564.3,3.2078]
[1758176103090,3.41418538,4564.4,4564.1,0.2956]
[1758176103294,3.2078,4564.7,4564.1,0.2956]
[1758176103491,0.236,4564.6,4564.1,0.2956]
[1758176103895,0.236,4564.6,4564.0,0.1258]
[1758176103896,0.236,4564.6,4564.0,0.6208]
[1758176104195,3.41418538,4564.5,4564.0,0.4214]
[1758176104395,3.41418538,4564.5,4564.2,0.2956]
[1758176104890,3.65018538,4564.5,4564.2,0.2956]
[1758176105798,3.65018538,4564.5,4564.2,0.2971]
[1758176106502,3.65018538,4564.5,4564.1,0.0219]
[1758176106798,3.2078,4564.2,4564.1,0.0219]
[1758176106995,3.2078,4564.2,4564.1,0.319]
[1758176107297,7.4438,4564.2,4564.1,0.0219]
[1758176107499,7.2078,4564.2,4563.5,0.3307]
[1758176107792,3.2078,4564.2,4563.7,0.2971]
[1758176107998,0.236,4564.1,4563.5,0.3307]
[1758176108599,0.236,4564.1,4564.0,0.1282]
[1758176108895,3.2078,4564.2,4564.0,0.1282]
[1758176109094,0.236,4564.1,4564.0,0.4253]
[1758176109999,3.2078,4564.2,4564.0,0.1282]
[1758176110194,3.4438,4564.2,4564.1,0.502]
[1758176111401,3.2078,4564.2,4564.1,0.7097]
[1758176112600,1.0679,4564.7,4564.5,0.1282]
[1758176112906,1.0679,4564.7,4564.6,0.7097]
[1758176113303,0.235,4564.8,4564.7,0.2971]
[1758176114003,0.235,4564.8,4564.5,0.1282]
[1758176114298,3.41418538,4564.6,4564.0,0.1282]
[1758176114503,6.62198538,4564.1,4564.0,0.4253]
[1758176115802,6.62198538,4564.1,4564.0,0.1282]
[1758176116192,3.2078,4564.1,4564.0,0.1282]
[1758176116399,3.2078,4564.1,4564.0,0.4253]
[1758176116806,3.2078,4564.1,4564.0,0.8379]
[1758176117504,1.2243,4564.4,4564.3,0.4126]
[1758176117706,1.2243,4564.4,4564.3,0.7097]
[1758176118002,3.4428,4564.8,4564.5,0.1282]
[1758176118197,3.4428,4564.8,4564.5,0.3331]
[1758176118405,3.4428,4564.8,4564.6,0.2971]
[1758176120107,3.4428,4564.8,4564.5,0.1282]
[1758176120308,3.41418538,4564.6,4564.5,0.1282]
[1758176120810,3.64918538,4564.6,4564.5,0.4253]
[1758176122603,3.64918538,4564.6,4564.0,0.4253]
[1758176122805,3.2078,4564.1,4564.0,0.4253]
[1758176126310,3.2078,4564.1,4563.5,0.4229]
[1758176126311,3.4418,4564.1,4563.5,0.4229]
[1758176126605,6.62198538,4563.6,4563.3,0.0174]